bitfinex-derivatives/quotes_ETHF0:USTF0_20250101
["timestamp","ask_amount","ask_price","bid_price","bid_amount"]
[1735747930369,2.25956292,3352.9,3352.4,0.8807]
[1735747930575,0.29887,3352.5,3352.4,0.8807]
[1735747931273,0.74737,3352.5,3352.4,0.8807]
[1735747931480,0.29892,3352.0,3351.9,4.2078]
[1735747936577,1.49092,3352.0,3351.9,4.2078]
[1735747937569,1.49092,3352.0,3351.9,1.0]
[1735747937784,1.49092,3352.0,3351.5,3.2078]
[1735747937785,0.29895,3351.6,3351.5,3.2078]
[1735747937982,0.29895,3351.6,3351.5,3.6457]
[1735747942278,0.29895,3351.6,3351.1,3.2078]
[1735747942279,2.25956292,3351.6,3351.1,3.2078]
[1735747942481,0.29899,3351.2,3351.1,3.2078]
[1735747943890,6.66136292,3351.3,3350.7,0.4246]
[1735747944185,0.29906,3350.4,3350.3,0.8905]
[1735747945182,0.29909,3350.0,3349.9,3.6359]
[1735747945977,0.29909,3350.0,3349.9,3.2078]
[1735747947385,0.29912,3349.7,3349.6,0.4309]
[1735747947590,0.29914,3349.5,3349.4,0.4277]
[1735747947890,0.29915,3349.4,3349.3,3.2078]
[1735747949192,2.25956292,3349.6,3348.9,3.2078]
[1735747949393,0.29918,3349.1,3348.9,3.2078]
[1735747949790,2.25956292,3349.6,3349.0,0.29917]
[1735747949988,0.29914,3349.5,3349.1,0.29916]
[1735747950188,0.29915,3349.4,3349.0,0.29918]
[1735747950391,2.25956292,3349.6,3348.9,3.2078]
[1735747950588,3.45356292,3349.6,3349.1,0.29917]
[1735747950891,0.29914,3349.5,3349.1,0.29917]
[1735747951194,0.29915,3349.4,3349.1,0.29917]
[1735747952499,0.29915,3349.4,3349.0,0.29918]
[1735747953494,3.45356292,3349.6,3349.1,0.29917]
[1735747953804,3.75269292,3349.6,3349.3,0.29915]
[1735747954088,3.75269292,3349.6,3348.7,2.04422]
[1735747954089,3.45356292,3349.6,3349.4,4.83414]
[1735747954292,1.194,3349.6,3349.4,4.535]
[1735747954895,1.49313,3349.6,3349.4,4.535]
[1735747955084,2.25956292,3349.9,3349.4,4.535]
[1735747955290,0.4622,3350.3,3349.4,4.535]
[1735747955291,0.2991,3350.0,3349.7,0.29912]
[1735747955984,1.194,3350.1,3349.7,0.29912]
[1735747956288,1.194,3350.1,3349.9,3.2078]
[1735747956489,0.29909,3350.0,3349.9,3.2078]
[1735747959489,1.194,3350.1,3349.9,3.2078]
[1735747959690,0.29905,3350.5,3350.2,0.29907]
[1735747959896,0.29905,3350.5,3350.3,0.4581]
[1735747961002,0.29905,3350.5,3350.3,0.75716]
[1735747961193,2.25956292,3350.6,3350.3,0.4581]
[1735747961395,3.45356292,3350.9,3350.3,3.6659]
[1735747961597,0.29901,3350.9,3350.8,3.2078]
[1735747962691,0.299,3351.1,3350.8,4.0847]
[1735747962897,0.29899,3351.1,3350.9,0.29901]
[1735747963098,0.29899,3351.1,3351.0,0.4515]
[1735747963708,0.29899,3351.2,3351.0,0.4515]
[1735747963894,0.29899,3351.1,3351.0,0.4515]
[1735747964300,1.194,3351.3,3351.0,0.4515]
[1735747964495,1.194,3351.3,3351.2,3.2078]
[1735747964699,0.29897,3351.4,3351.2,3.2078]
[1735747965604,0.29894,3351.7,3351.2,3.50678]
[1735747965805,0.29896,3351.5,3351.2,3.50678]
[1735747965998,2.25956292,3351.8,3351.2,3.2078]
[1735747966198,0.29897,3351.4,3351.2,3.2078]
[1735747967401,2.25956292,3351.7,3351.2,3.50678]
[1735747967705,0.29898,3351.3,3351.2,3.2078]
[1735747969302,0.29899,3351.1,3351.0,0.4515]
[1735747970711,0.29899,3351.1,3350.8,0.4289]
[1735747970712,0.29901,3350.9,3350.8,0.4289]
[1735747971102,0.29901,3350.9,3350.8,0.8903]
[1735747974907,0.299,3351.0,3350.8,1.18932]
[1735747975107,1.199,3351.1,3350.9,0.7516]
[1735747975315,1.49799,3351.1,3350.9,0.7516]
[1735747975510,1.199,3351.1,3351.0,0.299]
[1735747975815,0.29898,3351.3,3351.1,0.29899]
[1735747976017,0.29898,3351.3,3351.2,3.2078]
[1735747977219,1.199,3351.6,3351.3,0.29897]
[1735747977513,0.29897,3351.4,3351.2,3.50678]
[1735747977716,0.29896,3351.5,3351.3,0.29897]
[1735747978131,0.29896,3351.5,3351.4,0.4446]
[1735747981819,0.29896,3351.5,3351.4,0.8785]
[1735747983419,1.199,3351.6,3351.4,0.8785]
[1735747983420,0.8945,3352.1,3351.4,0.8785]
[1735747983611,2.25956292,3351.9,3351.4,0.8785]
[1735747983820,0.29896,3351.5,3351.4,0.8785]
[1735747984018,0.29896,3351.5,3351.4,0.4339]
[1735747984222,0.4495,3351.5,3351.0,0.8944]
[1735747984522,0.4495,3351.5,3351.0,0.4567]
[1735747984523,0.29899,3351.1,3351.0,0.4567]
[1735747988621,1.12214138,3351.5,3351.0,0.4567]
[1735747988926,0.29896,3351.5,3351.3,0.29897]
[1735747989127,2.25956292,3351.6,3351.2,3.50678]
[1735747989326,0.29897,3351.3,3351.2,3.2078]
[1735747990524,0.29899,3351.1,3351.0,0.4567]
[1735747994724,2.39442,3351.5,3350.9,0.4526]
[1735747994725,0.299,3351.0,3350.9,0.4526]
[1735747999427,0.4288,3351.2,3350.7,3.2078]
[1735747999630,0.29902,3350.8,3350.7,3.2078]
[1735748000534,1.49702,3350.8,3350.7,3.2078]
[1735748002736,1.49702,3350.8,3350.3,0.444]
[1735748002737,0.29905,3350.5,3350.3,3.95086]
[1735748003138,1.198,3350.8,3350.3,3.6518]
[1735748003333,1.49702,3350.8,3350.7,3.2078]
[1735748004243,1.49702,3350.8,3350.7,3.6571]
[1735748005036,0.4288,3351.2,3350.7,3.6571]
[1735748005236,3.45856292,3351.3,3350.9,3.2078]
[1735748005442,0.29899,3351.1,3351.0,0.4278]
[1735748011247,3.24782996,3351.5,3351.0,0.7268]
[1735748011248,0.29899,3351.2,3351.0,0.7268]
[1735748011441,0.29898,3351.3,3351.1,0.72599]
[1735748011939,0.29898,3351.2,3351.1,0.427]
[1735748013145,0.29899,3351.1,3351.0,0.4278]
[1735748013347,0.448,3351.1,3350.7,0.4493]
[1735748013548,0.29902,3350.8,3350.7,0.4493]
[1735748016946,2.25956292,3350.9,3350.4,4.0871]
[1735748017142,0.29905,3350.5,3350.4,4.0871]
[1735748017846,0.29902,3350.8,3350.4,4.0871]
[1735748018049,0.29904,3350.6,3350.5,0.4621]
[1735748039654,0.29905,3350.5,3350.4,3.2078]
[1735748039853,0.74215,3350.5,3350.4,3.2078]
[1735748042554,0.74215,3350.5,3350.4,3.6539]
[1735748042555,0.29905,3350.5,3350.4,3.6539]
[1735748043151,0.29905,3350.5,3350.4,0.4461]
[1735748043354,0.29906,3350.3,3350.2,0.4373]
[1735748043556,0.29906,3350.3,3350.0,3.2078]
[1735748043557,0.29908,3350.1,3350.0,3.2078]
[1735748043753,3.45156292,3350.1,3349.4,4.0998]
[1735748043957,0.29914,3349.5,3349.4,0.892]
[1735748044853,0.4441,3349.6,3349.4,0.892]
[1735748045251,0.4441,3349.6,3349.3,0.4649]
[1735748045458,2.55870292,3349.4,3349.3,0.4649]
[1735748045761,3.75070292,3349.4,3349.3,0.4649]
[1735748046362,3.45156292,3349.4,3348.9,0.8724]
[1735748046563,2.55873292,3349.1,3349.0,0.4412]
[1735748047263,2.25956292,3349.1,3349.0,0.4412]
[1735748047756,2.55871292,3349.4,3349.0,0.4412]
[1735748048257,2.25956292,3349.4,3349.0,0.4412]
[1735748049259,2.55868292,3349.7,3349.3,3.2078]
[1735748049461,3.75168292,3349.7,3349.3,3.2078]
[1735748049658,2.55868292,3349.7,3349.3,3.2078]
[1735748050667,0.29913,3349.6,3349.3,3.2078]
[1735748050861,2.25956292,3349.7,3349.3,3.2078]
[1735748051156,0.29914,3349.5,3349.3,3.2078]
[1735748051666,0.29913,3349.6,3349.3,3.2078]
[1735748051860,2.25956292,3349.7,3349.3,3.2078]
[1735748052164,0.29914,3349.5,3349.3,3.2078]
[1735748052370,0.29914,3349.5,3349.4,0.4594]
[1735748055762,2.25956292,3349.7,3349.4,0.4594]
[1735748055962,0.70902388,3350.0,3349.4,0.4594]
[1735748055963,2.25956292,3350.0,3349.5,0.4675]
[1735748056170,2.25956292,3350.0,3349.6,0.4549]
[1735748056367,0.29911,3349.8,3349.6,0.4549]
[1735748056565,2.25956292,3350.0,3349.6,0.4549]
[1735748056566,0.2991,3349.9,3349.6,0.4549]
[1735748057465,2.25956292,3350.0,3349.6,0.4549]
[1735748057670,2.55866292,3350.0,3349.6,0.4549]
[1735748057867,2.25956292,3350.0,3349.6,0.4549]
[1735748058064,2.55866292,3350.0,3349.6,0.4549]
[1735748059772,2.25956292,3350.0,3349.6,0.4549]
[1735748060073,0.29911,3349.9,3349.6,0.4549]
[1735748062073,2.25956292,3350.0,3349.6,0.4549]
[1735748062274,0.29912,3349.7,3349.6,0.4549]
[1735748063270,2.55868292,3349.7,3349.6,3.2078]
[1735748065476,3.75168292,3349.7,3349.6,3.2078]
[1735748070291,1.49212,3349.7,3349.6,3.2078]
[1735748070578,0.29912,3349.7,3349.6,3.2078]
[1735748070775,2.25956292,3350.0,3349.6,3.2078]
[1735748071084,0.29911,3349.8,3349.6,3.2078]
[1735748071371,0.29911,3349.8,3349.6,3.50693]
[1735748071577,0.29911,3349.8,3349.6,3.2078]
[1735748071971,4.4453775,3350.3,3349.6,3.50692]
[1735748071972,0.29911,3349.9,3349.6,3.50692]
[1735748072373,0.29911,3349.8,3349.6,3.50692]
[1735748072978,0.29911,3349.9,3349.6,3.50692]
[1735748073479,0.29911,3349.8,3349.6,3.50692]
[1735748074178,3.45256292,3350.3,3349.6,3.50692]
[1735748074373,3.45256292,3350.3,3349.6,3.2078]
[1735748074574,0.29912,3349.7,3349.6,3.2078]
[1735748074781,0.29911,3349.8,3349.6,3.2078]
[1735748075882,0.74769,3350.2,3349.6,3.2078]
[1735748076079,0.29912,3349.7,3349.6,3.2078]
[1735748077072,0.74769,3350.2,3349.6,3.2078]
[1735748077685,0.29912,3349.7,3349.6,3.2078]
[1735748078184,0.29911,3349.8,3349.6,3.50692]
[1735748079681,2.25956292,3350.3,3349.6,3.2078]
[1735748079984,0.74769,3350.2,3349.6,3.20998105]
[1735748080278,0.2991,3349.9,3349.7,0.29912]
[1735748080482,0.2991,3349.9,3349.8,0.4348]
[1735748080681,0.2991,3349.9,3349.8,0.8854]
[1735748083081,0.2991,3349.9,3349.8,0.4348]
[1735748083283,0.29912,3349.7,3349.6,3.20998105]
[1735748088791,0.29912,3349.7,3349.6,0.00218105]
[1735748096792,0.29911,3349.8,3349.7,0.29912]
[1735748097297,0.29911,3349.8,3349.6,3.50910105]
[1735748097490,1.94071,3350.2,3349.6,3.50910105]
[1735748098093,0.29911,3349.8,3349.6,3.50910105]
[1735748098294,1.94071,3350.2,3349.6,3.50910105]
[1735748098295,0.29912,3349.7,3349.6,3.20998105]
[1735748102698,0.29912,3349.7,3349.6,0.00218105]
[1735748103499,0.29919,3348.9,3348.8,3.2078]
[1735748107106,0.4669,3349.0,3348.7,0.4658]
[1735748107309,0.29922,3348.6,3348.5,0.4467]
[1735748107701,0.29921,3348.7,3348.5,0.4467]
[1735748108708,0.29922,3348.6,3348.5,0.4467]
[1735748109001,2.25956292,3348.8,3348.5,0.4467]
[1735748109303,5.46736292,3349.1,3348.5,0.4467]
[1735748109509,5.76654292,3349.1,3348.8,0.29919]
[1735748109704,5.46736292,3349.1,3348.5,0.4467]
[1735748110008,0.29921,3348.7,3348.6,0.4359]
[1735748110304,2.55877292,3348.7,3348.6,0.4359]
[1735748110606,0.29927,3348.0,3347.9,3.2078]
[1735748110908,0.29927,3348.0,3347.3,2.71728219]
[1735748110909,0.29928,3347.9,3347.8,0.4309]
[1735748111293,8.45256292,3347.9,3347.1,3.2078]
[1735748111493,2.25956292,3347.2,3346.7,4.6376072]
[1735748111703,2.25956292,3346.8,3346.7,4.6376072]
[1735748111899,2.25956292,3347.4,3347.3,0.29934]
[1735748112096,2.55889292,3347.4,3347.0,3.2078]
[1735748112304,2.55889292,3347.4,3347.1,0.8673]
[1735748112813,2.25956292,3347.4,3347.3,0.29934]
[1735748113105,3.2078,3347.5,3347.1,1.3096]
[1735748113507,2.25956292,3347.4,3347.1,1.3096]
[1735748113711,2.25956292,3347.4,3347.1,1.60895]
[1735748113896,3.2078,3347.5,3347.3,0.29934]
[1735748114201,2.25956292,3347.4,3347.1,1.3096]
[1735748114399,0.29934,3347.2,3347.1,1.3096]
[1735748117008,0.29934,3347.3,3347.1,1.3096]
[1735748117209,0.29934,3347.3,3347.1,1.60895]
[1735748117709,0.29934,3347.3,3347.1,1.3096]
[1735748118409,0.29934,3347.3,3347.1,1.60895]
[1735748118604,0.29934,3347.3,3347.1,1.3096]
[1735748119012,0.29934,3347.2,3347.1,1.3096]
[1735748120305,0.29934,3347.3,3347.1,1.60895]
[1735748120612,0.29934,3347.2,3347.1,1.3096]
[1735748121214,7.83339292,3347.8,3347.1,1.3096]
[1735748121411,0.29936,3347.2,3347.1,1.3096]
[1735748122423,0.7485,3346.9,3345.8,3.2078]
[1735748122624,0.29946,3346.2,3345.9,0.29948]
[1735748123223,0.4568,3346.5,3345.8,4.5752]
[1735748123722,0.29945,3346.3,3346.1,0.29946]
[1735748123920,0.4568,3346.5,3345.8,4.5752]
[1735748124119,0.29946,3346.2,3345.8,4.5752]
[1735748124423,0.29945,3346.3,3346.0,0.29947]
[1735748124620,3.2078,3346.7,3345.8,4.5752]
[1735748124818,3.2078,3346.7,3346.1,0.29946]
[1735748125018,0.29944,3346.4,3346.1,0.29946]
[1735748125221,3.2078,3346.7,3346.2,0.29945]
[1735748125222,0.29943,3346.5,3346.2,0.29945]
[1735748125525,3.2078,3346.7,3345.8,6.83476292]
[1735748125721,0.29943,3346.5,3345.8,6.83476292]
[1735748126024,0.29943,3346.5,3346.3,0.29944]
[1735748126224,0.29943,3346.5,3346.4,0.9071]
[1735748126722,3.2078,3346.7,3346.4,0.9071]
[1735748126921,3.2078,3346.7,3346.6,0.29942]
[1735748128423,3.2078,3346.7,3346.5,0.4578]
[1735748128625,3.2078,3346.7,3346.5,0.75722]
[1735748128626,3.50721,3346.7,3346.5,0.75722]
[1735748128826,3.2078,3346.7,3346.6,0.29942]
[1735748130232,3.50722,3346.7,3346.5,0.75722]
[1735748130424,3.50721,3346.7,3346.5,0.75722]
[1735748130625,0.29942,3346.6,3346.5,0.75722]
[1735748130828,0.29942,3346.6,3346.5,0.4578]
[1735748131136,2.55898292,3346.6,3346.5,0.4578]
[1735748131428,3.01558292,3346.6,3346.5,0.4578]
[1735748133432,0.29943,3346.5,3346.4,0.9071]
[1735748138929,2.71616292,3346.6,3346.4,0.9071]
[1735748139327,0.29943,3346.5,3346.4,0.9071]
[1735748140232,3.50718,3347.1,3346.6,0.29942]
[1735748140436,4.4018,3347.1,3346.4,0.9071]
[1735748140643,0.29939,3347.0,3346.8,0.2994]
[1735748140831,2.71716292,3347.2,3346.9,0.8641]
[1735748141033,0.29938,3347.1,3347.0,0.4442]
[1735748142638,2.71716292,3347.2,3347.0,0.74358]
[1735748142639,3.01653292,3347.2,3347.0,0.74358]
[1735748143136,2.55890292,3347.5,3347.1,0.29937]
[1735748143336,0.29933,3347.6,3347.1,0.29937]
[1735748143534,0.29933,3347.6,3347.4,0.29934]
[1735748143830,3.2078,3347.7,3347.0,0.4442]
[1735748144035,0.29933,3347.6,3347.3,0.29935]
[1735748144440,0.29933,3347.6,3347.4,0.4566]
[1735748145241,3.2078,3347.7,3347.4,0.4566]
[1735748145538,3.50712,3347.7,3347.4,0.75594]
[1735748145738,3.2078,3347.7,3347.4,0.75594]
[1735748146042,0.29933,3347.6,3347.4,0.4566]
[1735748146341,3.2078,3347.7,3347.4,0.4566]
[1735748146541,0.29933,3347.6,3347.4,0.4566]
[1735748147029,3.50712,3347.7,3347.4,0.4566]
[1735748147437,3.50712,3347.7,3347.5,0.29933]
[1735748147639,3.50712,3347.7,3347.6,0.4355]
[1735748150846,2.25956292,3348.3,3347.6,0.4355]
[1735748151147,0.29927,3348.2,3348.0,0.29929]
[1735748151750,1.194,3348.3,3347.9,0.4321]
[1735748151951,0.4568,3348.5,3348.3,0.29926]
[1735748152242,0.4568,3348.5,3347.9,0.4321]
[1735748152545,0.29928,3348.2,3347.9,1.16229]
[1735748153343,0.29928,3348.1,3347.9,1.16229]
[1735748153936,0.29929,3348.1,3347.9,0.863]
[1735748154346,0.29929,3348.1,3347.9,1.1623]
[1735748154848,0.4568,3348.5,3347.9,1.1623]
[1735748155145,0.29929,3348.0,3347.9,1.1623]
[1735748156041,0.29929,3348.0,3347.9,0.863]
[1735748156242,0.29929,3348.0,3347.9,1.1623]
[1735748156543,0.29929,3348.0,3347.9,0.863]
[1735748156751,0.2993,3347.9,3347.8,3.2078]
[1735748156944,0.736,3347.9,3347.8,3.2078]
[1735748157148,0.736,3347.9,3347.2,1.3557]
[1735748157149,0.29935,3347.3,3347.2,1.3557]
[1735748157345,0.29935,3347.3,3347.2,1.65506]
[1735748157846,0.29933,3347.6,3347.5,0.29933]
[1735748158042,0.29932,3347.7,3347.6,0.29932]
[1735748158348,0.29932,3347.7,3347.6,0.29933]
[1735748158553,0.29931,3347.8,3347.5,0.29933]
[1735748158749,0.4367,3347.9,3347.4,3.2078]
[1735748158750,0.29932,3347.7,3347.4,3.2078]
[1735748159045,0.29934,3347.5,3347.4,3.50714]
[1735748159239,0.4367,3347.9,3347.5,0.29933]
[1735748159240,0.29933,3347.6,3347.5,0.29933]
[1735748159440,0.29932,3347.7,3347.6,0.29932]
[1735748159646,0.29933,3347.6,3347.5,0.29933]
[1735748159847,0.29932,3347.7,3347.6,0.29932]
[1735748161051,0.29934,3347.6,3347.5,0.29933]
[1735748163649,0.29934,3347.6,3347.4,3.2078]
[1735748163952,0.29934,3347.5,3347.4,3.2078]
[1735748164359,0.29937,3347.1,3347.0,3.2078]
[1735748165452,0.29944,3346.3,3346.2,0.4662]
[1735748166858,4.38316292,3346.7,3346.2,0.4662]
[1735748167055,0.29944,3346.3,3346.2,0.4662]
[1735748169963,2.25956292,3346.4,3345.6,3.2078]
[1735748170156,0.2995,3345.7,3345.6,3.2078]
[1735748170456,0.29951,3345.5,3345.4,40.8]
[1735748170659,2.25956292,3345.8,3345.2,3.2078]
[1735748170959,0.29953,3345.3,3345.2,3.2078]
[1735748171559,0.4676,3345.7,3345.2,3.50734]
[1735748171560,0.29952,3345.4,3345.2,3.50734]
[1735748171761,1.194,3345.9,3345.2,3.2078]
[1735748172564,0.29952,3345.5,3345.2,3.50734]
[1735748172753,1.194,3345.9,3345.2,3.2078]
[1735748172953,0.2995,3345.7,3345.2,3.2078]
[1735748173151,0.29948,3345.9,3345.6,0.2995]
[1735748173354,0.29948,3345.9,3345.7,0.4223]
[1735748173554,0.29948,3345.9,3345.7,1.16609]
[1735748173751,1.194,3346.0,3345.7,0.8666]
[1735748173955,2.55902292,3346.1,3345.7,0.8666]
[1735748174159,2.25956292,3346.1,3345.8,0.29948]
[1735748174364,0.29947,3346.0,3345.8,0.29948]
[1735748174551,3.89676292,3346.4,3345.7,0.8666]
[1735748174749,0.29946,3346.1,3345.9,0.29947]
[1735748174953,0.29947,3346.0,3345.8,0.29948]
[1735748175162,0.29948,3346.0,3345.8,0.29948]
[1735748175363,3.89676292,3346.4,3345.7,0.8666]
[1735748175562,0.29947,3346.0,3345.8,0.29948]
[1735748176057,0.29948,3345.9,3345.7,1.16609]
[1735748176260,2.25956292,3346.1,3345.7,0.8666]
[1735748176563,0.29949,3345.8,3345.7,0.8666]
[1735748176965,0.29949,3345.8,3345.7,1.16609]
[1735748177159,2.25956292,3346.1,3345.7,1.16609]
[1735748177365,0.29947,3346.1,3345.9,0.29948]
[1735748177771,0.29947,3346.1,3346.0,0.4622]
[1735748178059,3.89676292,3346.4,3346.2,0.29945]
[1735748178060,0.29944,3346.4,3346.2,0.29945]
[1735748178264,0.29944,3346.4,3346.3,0.4266]
[1735748178667,1.49343,3346.5,3346.3,0.72604]
[1735748179167,0.29943,3346.4,3346.3,0.4266]
[1735748179376,1.194,3346.5,3346.3,0.4266]
[1735748179561,1.49343,3346.5,3346.3,0.4266]
[1735748179761,1.49343,3346.5,3346.3,0.72604]
[1735748179964,0.29943,3346.4,3346.3,0.4266]
[1735748180265,1.49343,3346.5,3346.3,0.72604]
[1735748180860,5.46736292,3346.7,3346.3,0.4266]
[1735748181062,0.29942,3346.6,3346.4,0.29943]
[1735748181564,3.2078,3346.7,3346.6,0.29942]
[1735748181964,3.2078,3346.7,3346.5,0.29942]
[1735748182165,3.50721,3346.7,3346.5,0.29942]
[1735748182378,3.50721,3346.7,3346.4,0.29943]
[1735748182567,3.50721,3346.7,3346.5,0.29942]
[1735748183469,0.29943,3346.4,3346.3,0.4266]
[1735748183670,0.9027,3346.6,3346.0,3.96946]
[1735748183865,0.29945,3346.3,3346.1,0.29946]
[1735748184566,0.9027,3346.6,3346.1,0.29946]
[1735748184870,0.29945,3346.2,3346.1,0.29946]
[1735748186869,0.29946,3346.1,3346.0,3.67]
[1735748187574,2.55902292,3346.1,3346.0,3.2078]
[1735748188270,5.46736292,3346.1,3345.6,0.4325]
[1735748188473,0.29949,3345.9,3345.7,3.50729]
[1735748188667,0.29948,3345.9,3345.8,0.29949]
[1735748188866,3.95642,3346.3,3345.6,0.4325]
[1735748189073,0.29948,3345.9,3345.8,0.29949]
[1735748189272,3.95642,3346.3,3345.8,0.29949]
[1735748189472,3.2078,3346.3,3345.8,0.29949]
[1735748189666,3.2078,3346.3,3345.7,3.2078]
[1735748189874,0.29949,3345.8,3345.7,3.2078]
[1735748190575,0.29949,3345.8,3345.7,3.5073]
[1735748191277,0.29948,3345.9,3345.7,3.5073]
[1735748191479,0.29948,3345.9,3345.8,0.4241]
[1735748193779,0.29948,3345.9,3345.8,0.72359]
[1735748193982,0.29947,3346.0,3345.8,0.72359]
[1735748194177,0.29947,3346.1,3345.9,0.29947]
[1735748194478,3.6954233,3346.4,3346.0,0.29946]
[1735748194479,0.29946,3346.2,3346.0,0.29946]
[1735748194678,0.29945,3346.3,3346.1,3.92986]
[1735748194876,0.29945,3346.3,3346.2,0.4383]
[1735748195475,3.45356292,3346.4,3346.2,0.4383]
[1735748195678,0.29942,3346.6,3346.3,0.29944]
[1735748195876,0.29942,3346.5,3346.4,0.43]
[1735748196683,0.2994,3346.8,3346.7,0.29941]
[1735748196979,0.2994,3346.8,3346.6,0.29941]
[1735748197178,0.2994,3346.8,3346.4,0.43]
[1735748197179,0.29941,3346.7,3346.5,0.29942]
[1735748197880,0.29941,3346.7,3346.4,0.43]
[1735748197881,0.2994,3346.8,3346.6,0.29941]
[1735748198076,0.2994,3346.8,3346.7,0.4385]
[1735748199085,0.2994,3346.8,3346.7,0.7379]
[1735748199282,1.21431,3347.3,3346.7,3.6463]
[1735748199283,2.25956292,3347.3,3346.7,3.6463]
[1735748199478,2.25956292,3347.3,3346.8,0.4354]
[1735748199783,0.29936,3347.2,3347.1,0.29937]
[1735748199988,0.29936,3347.2,3346.9,0.29938]
[1735748200182,2.25956292,3347.3,3347.0,0.4677]
[1735748200388,0.29936,3347.2,3347.0,0.76707]
[1735748200680,0.29937,3347.1,3347.0,0.4677]
[1735748202583,0.29937,3347.2,3347.0,0.76707]
[1735748203078,2.25956292,3347.3,3347.0,0.4677]
[1735748203283,0.29937,3347.1,3347.0,0.4677]
[1735748203584,0.74844,3347.1,3346.3,3.2078]
[1735748203788,0.74844,3347.1,3346.5,0.4613]
[1735748203789,0.29941,3346.6,3346.5,0.4613]
[1735748204086,2.25956292,3346.9,3346.5,0.4613]
[1735748204278,2.25956292,3346.9,3346.6,0.4493]
[1735748204679,0.2994,3346.8,3346.6,0.4493]
[1735748205184,0.29939,3346.9,3346.6,0.4493]
[1735748205578,3.2078,3347.1,3346.6,0.4493]
[1735748205778,0.29939,3346.9,3346.6,0.74871]
[1735748206189,0.29938,3347.0,3346.7,0.2994]
[1735748206487,0.73806,3347.3,3346.8,0.2994]
[1735748206685,0.29936,3347.2,3346.9,0.29938]
[1735748206885,0.29936,3347.2,3347.0,0.4442]
[1735748207185,0.29936,3347.2,3347.1,0.466]
[1735748208583,5.46736292,3347.5,3347.1,0.466]
[1735748208788,3.50714,3347.5,3347.3,0.29934]
[1735748209488,0.29932,3347.7,3347.5,0.29933]
[1735748209686,1.194,3348.0,3347.6,0.29933]
[1735748209885,3.50708,3348.1,3347.9,0.2993]
[1735748210083,3.2078,3348.1,3348.0,0.4294]
[1735748210488,3.50708,3348.1,3348.0,0.4294]
[1735748214184,5.46736292,3348.1,3347.7,0.8927]
[1735748214391,0.29931,3347.8,3347.7,0.4402]
[1735748217791,0.29933,3347.5,3347.4,0.8575]
[1735748219795,0.29933,3347.5,3347.4,1.15684]
[1735748220186,2.25956292,3347.8,3347.4,0.8575]
[1735748220492,0.29933,3347.6,3347.5,0.29933]
[1735748220996,0.4281,3348.0,3347.4,0.8575]
[1735748221191,0.29931,3347.8,3347.5,0.29933]
[1735748221390,0.29931,3347.9,3347.4,0.8575]
[1735748221590,0.29931,3347.9,3347.8,0.2993]
[1735748221992,3.2078,3348.1,3347.4,1.60585]
[1735748222293,0.2993,3347.9,3347.8,0.2993]
[1735748224790,0.29926,3348.4,3348.3,0.29925]
[1735748225096,0.29926,3348.4,3347.9,0.462]
[1735748225097,0.29929,3348.0,3347.9,0.462]
[1735748225285,0.29929,3348.0,3347.4,3.6348]
[1735748225286,0.29933,3347.5,3347.4,3.6348]
[1735748225488,0.29933,3347.5,3347.4,3.2078]
[1735748225788,0.74832,3347.6,3347.0,3.2078]
[1735748226095,2.72056292,3347.4,3346.7,0.4681]
[1735748226296,0.29935,3347.3,3346.7,0.7675]
[1735748226490,0.29939,3346.9,3346.8,0.2994]
[1735748227001,3.2078,3347.2,3346.7,0.4681]
[1735748227292,3.2078,3347.2,3346.7,0.7675]
[1735748227497,2.25956292,3347.1,3346.5,3.50722]
[1735748227698,0.29941,3346.6,3346.5,3.50722]
[1735748227995,0.29941,3346.7,3346.5,3.50722]
[1735748228195,0.2994,3346.8,3346.6,0.29941]
[1735748230390,0.2994,3346.7,3346.6,0.29941]
[1735748230797,3.2078,3347.2,3346.6,0.29941]
[1735748230998,0.2994,3346.8,3346.6,0.29941]
[1735748231200,0.2994,3346.8,3346.5,3.2078]
[1735748231201,0.2994,3346.8,3346.7,0.2994]
[1735748231398,0.2994,3346.8,3346.5,3.2078]
[1735748231399,0.2994,3346.8,3346.6,0.29941]
[1735748232096,0.2994,3346.8,3346.5,3.2078]
[1735748232302,3.2078,3347.2,3346.7,0.2994]
[1735748232593,0.29935,3347.4,3347.0,3.2078]
[1735748232799,3.2078,3347.6,3347.1,0.8754]
[1735748232995,0.29936,3347.2,3347.1,0.8754]
[1735748233804,3.2078,3347.6,3347.1,0.8754]
[1735748234100,0.29936,3347.2,3347.1,0.8754]
[1735748234401,0.29939,3346.9,3346.6,0.29941]
[1735748234593,2.25956292,3347.5,3346.5,4.1389]
[1735748234796,0.29937,3347.1,3346.9,0.29938]
[1735748235098,0.4257,3347.4,3346.5,4.1389]
[1735748235298,0.29936,3347.2,3347.0,0.29937]
[1735748235601,0.29936,3347.2,3347.1,0.4629]
[1735748237301,0.29941,3346.7,3346.5,3.97542]
[1735748237499,0.2994,3346.8,3346.6,0.4324]
[1735748238004,2.25956292,3347.2,3346.6,0.4324]
[1735748238005,0.29938,3347.0,3346.6,0.4324]
[1735748238303,0.4257,3347.4,3346.7,0.2994]
[1735748238493,0.2994,3346.8,3346.7,0.7335]
[1735748238902,0.29939,3346.9,3346.8,0.29939]
[1735748239105,0.4257,3347.4,3346.7,0.4341]
[1735748239298,0.29937,3347.2,3347.0,3.50717]
[1735748239493,0.29936,3347.3,3347.2,0.29936]
[1735748239701,3.2078,3347.6,3347.2,0.4324]
[1735748239894,0.438,3348.1,3347.5,3.2078]